Cogmind - Beta 15 @@@ ROGUE MODE // 2025.06.28 @ 20:25:10 Player: Evie Result: Destroyed by IW-BRA(j) with Overtuned Pulse Rifle Performance ------------- Evolutions (0) 0 Regions Visited (3) 600 Robots Destroyed (14) 70 Value Destroyed (360) 360 Prototype IDs (7) 140 Alien Tech Used (0) 0 Bonus (688) 688 TOTAL SCORE: 1858 Bonus ------- Registered with UFD 300 Met Optimus in HQ 500 Friendly Fire -112 Cogmind --------- Core Integrity 0/250 Matter 300/300 Energy 95/100 System Corruption 2% Temperature Cool (12) Movement Core (150) Ox2 Location -7/Scraptown Parts ------- > --- POWER (1) -------- (None) > --- PROPULSION (2) --- (None) > --- UTILITY (2) ------ Small Storage Unit > --- WEAPON (2) ------- Companion Sword > --- INVENTORY (8) ---- Subdweller Power Source Subdweller Power Source Medium Laser Light Assault Rifle Subdweller Machine Gun Makeshift Sword DRS Beacon (Ready) Botcube Peak State ------------ > --- POWER ------------ Ion Engine > --- PROPULSION ------- Subdweller Monowheel > --- UTILITY ---------- Small Storage Unit Improved Terrain Scanner > --- WEAPON ----------- Medium Laser Companion Sword > --- INVENTORY -------- Subdweller Power Source Subdweller Power Source Medium Laser Light Assault Rifle Subdweller Machine Gun Subdweller Machine Gun Makeshift Sword DRS Beacon [Rating: 16] Favorites ----------- Power Ion Engine Engine Ion Engine Propulsion Subdweller Monowheel Leg Aluminum Leg Wheel Subdweller Monowheel Utility Small Storage Unit Device Improved Terrain Scanner Storage Small Storage Unit Weapon Medium Laser Energy Gun Medium Laser Slashing Weapon Companion Sword Build | -11 -10 -10 -7 ------- Run | Yrd Mat Sub Scr Slots Evolved . | . . . . Power . | . . . . Propulsion . | . . . . Utility . | . . . . Weapon . | . . . . Parts Attached 13 | 7 . 4 2 Power 2 | 1 . 1 . Engine 2 | 1 . 1 . Core . | . . . . Reactor . | . . . . Propulsion 6 | 2 . 3 1 Treads . | . . . . Leg 2 | 2 . . . Wheel 4 | . . 3 1 Hover . | . . . . Flight . | . . . . Utility 2 | 2 . . . Device 1 | 1 . . . Storage 1 | 1 . . . Processor . | . . . . Hackware . | . . . . Protection . | . . . . Artifact . | . . . . Weapon 3 | 2 . . 1 Energy Gun 2 | 2 . . . Energy Cannon . | . . . . Ballistic Gun . | . . . . Ballistic Cannon . | . . . . Launcher . | . . . . Special Weapon . | . . . . Impact Weapon . | . . . . Slashing Weapon 1 | . . . 1 Piercing Weapon . | . . . . Special Melee Weapon . | . . . . Unidentified Prototypes 1 | . . . 1 Parts Lost 4 | . . 1 3 Power 2 | . . 1 1 Propulsion 1 | . . . 1 Utility 1 | . . . 1 Weapon . | . . . . Highest Loss Streak 3 | . . 1 3 To Critical Strikes . | . . . . Average Backups 7 | 4 7 7 7 Power 1 | . 2 1 2 Propulsion 1 | 3 4 2 . Utility . | . . . . Weapon 3 | . 1 3 4 Tool/Special . | . . . . Unused Backups 14 | . 2 5 7 Power 3 | . . 1 2 Propulsion 6 | . 2 4 . Utility . | . . . . Weapon 5 | . . . 5 Tool/Special . | . . . . Average Slot Usage (%) 93 | . 100 99 87 Engine 13 | . 14 13 13 Leg 5 | . 28 8 . Wheel 18 | . . 19 20 Device 13 | . 14 14 13 Storage 14 | . 14 14 14 Energy Gun 24 | . 28 28 20 Slashing Weapon 1 | . . . 3 Peak Build Rating 16 | 9 9 12 16 Average Rating 11 | 6 9 11 12 On Entrance 7 | . 9 9 12 Naked Turns . | . . . . Heaviest Build 15 | 15 15 15 15 Greatest Support 40 | 20 20 40 40 Greatest Overweight (x) 2 | . . . 2 Average Overweight (x) . | . . . . Largest Inventory Capacity 8 | 8 8 8 8 Average Capacity 7 | 7 8 8 8 Most Carried 8 | 8 8 8 8 Average Carried 7 | 5 7 7 7 Final Capacity 8 | 8 8 8 8 Final Carried 8 | 8 8 7 8 Class Distribution -------------------- 100% | Mutant Dominant Class ---------------- Mutant | -10/Materials Mutant | -10/Subcaves Mutant | -7/Scraptown Resources | -11 -10 -10 -7 ----------- Run | Yrd Mat Sub Scr Matter Collected 325 | 270 . 40 15 Remotely . | . . . . Salvage Created 636 | 138 128 255 115 Parts 34 | 5 8 14 7 Haulers Intercepted . | . . . . Recyclers Shooed 3 | 2 1 . . Parts Field Recycled . | . . . . Retrieved Matter . | . . . . Parts Self-Destructed . | . . . . Prevented . | . . . . Kills | -11 -10 -10 -7 ------- Run | Yrd Mat Sub Scr Combat Hostiles Destroyed 8 | . 2 4 2 Melee 2 | . . . 2 Guns 6 | . 2 4 . Classes Destroyed 8 | 2 2 2 2 Builder 2 | . 2 . . Tunneler 2 | 2 . . . Recycler 1 | 1 . . . Grunt 2 | . 2 . . Subdweller 4 | . . 4 . Guru 1 | . . . 1 Scrapper 1 | . . . 1 Guerrilla 1 | . . 1 . Best Kill Streak 2 | 2 2 2 2 Combat Bots Only 2 | . 1 2 2 Max Kills in Single Turn 1 | 1 1 1 1 Gunslinging . | . . . . Exploded . | . . . . Melee 1 | . . . 1 Uniques/NPCs Destroyed . | . . . . Combat | -11 -10 -10 -7 -------- Run | Yrd Mat Sub Scr Hostile Shots Fired 62 | . 18 13 31 Missed 17 | . 7 4 6 Hits 45 | . 11 9 25 Projectile 45 | . 11 9 25 Critical Strikes 4 | . . 1 3 Damage Taken 769 | . 159 228 382 Core 259 | . 30 70 159 Absorbed by Shields . | . . . . Core Remaining (%) 100 | 100 . . . Volleys Fired 33 | 7 15 11 . Largest 2 | 2 2 2 . Hottest 100 | 100 100 100 . Shots Fired 66 | 14 30 22 . Gun 66 | 14 30 22 . Cannon . | . . . . Launcher . | . . . . Special . | . . . . Kinetic . | . . . . Thermal 66 | 14 30 22 . Explosive . | . . . . Electromagnetic . | . . . . Robot Hit Streak 12 | 4 6 12 . Robot Miss Streak 2 | 1 2 2 . Penetration Max . | . . . . Secondary Targets . | . . . . Shots Hit Robots 53 | 9 20 19 5 Core Hits 20 | 4 7 7 2 Critical Kills . | . . . . Critical Parts Destroyed . | . . . . Critical Strikes 1 | 1 . . . Burn 1 | 1 . . . Melee Attacks 8 | . . . 8 Impact . | . . . . Slashing 8 | . . . 8 Piercing . | . . . . Sneak Attacks . | . . . . Combat Hostiles . | . . . . Follow-up Attacks . | . . . . Damage Inflicted 832 | 112 250 262 208 Guns 624 | 112 250 262 . Cannons . | . . . . Explosions . | . . . . Melee 208 | . . . 208 Ramming . | . . . . Kinetic . | . . . . Thermal 624 | 112 250 262 . Explosive . | . . . . Electromagnetic . | . . . . Impact . | . . . . Slashing 208 | . . . 208 Piercing . | . . . . Highest Corruption 2 | . . . 2 Average Corruption 1 | . . . 1 Corruption Purged . | . . . . Corruption Blocked . | . . . . Overload Shots . | . . . . Overflow Damage 8 | . . . 8 Projectiles . | . . . . Explosions . | . . . . Melee 8 | . . . 8 Knockbacks . | . . . . Impact . | . . . . Kinetic . | . . . . Secondary . | . . . . Self-Inflicted Damage . | . . . . Shots . | . . . . Rammed . | . . . . Targets Rammed . | . . . . Kicked . | . . . . Crushed . | . . . . Highest Temperature 222 | 78 222 2 18 Average Temperature 73 | 34 94 2 16 Received Heat Transfer 348 | . 90 15 243 Siege Activations . | . . . . Martial Activations . | . . . . Shielding Activations . | . . . . Robots Disrupted . | . . . . Combat Hostiles . | . . . . Robots Corrupted . | . . . . Combat Hostiles . | . . . . Parts Fried . | . . . . Impact Corruptions . | . . . . Robots Melted . | . . . . Combat Hostiles . | . . . . Parts Melted 5 | 1 1 2 1 Heat Transferred 1924 | 407 740 777 . Parts Sabotaged . | . . . . Parts Stolen . | . . . . Parts Stripped . | . . . . Power Chain Reactions . | . . . . Alert | -11 -10 -10 -7 ------- Run | Yrd Mat Sub Scr Maximum Alert Level . | . . . . Low Security (%) 100 | 100 100 . . Level 1 . | . . . . Level 2 . | . . . . Level 3 . | . . . . Level 4 . | . . . . Level 5 . | . . . . High Security . | . . . . Max Security . | . . . . Peak Influence 65 | 5 65 . . Initial . | . . . . Average 17 | 1 29 . . Influence Increases 120 | 15 105 . . Destroy 0b10 Robot/C 40 | . 40 . . Destroy 0b10 Robot/NC 25 | 15 10 . . Destroy Leader 10 | . 10 . . Lose Combat Pursuer 45 | . 45 . . Influence Decreases 120 | 15 50 55 . Entered New Map 27 | . . 27 . Time Decay 93 | 15 50 28 . Squads Dispatched . | . . . . Investigation . | . . . . Extermination . | . . . . Reinforcement . | . . . . Assault . | . . . . Garrison . | . . . . Intercept . | . . . . Searches Triggered . | . . . . Construction Impeded . | . . . . Haulers Reinforced . | . . . . Active Scanning Responses . | . . . . Cargo Convoy Interrupts . | . . . . Stealth | -11 -10 -10 -7 --------- Run | Yrd Mat Sub Scr Distress Signals . | . . . . Communications Jammed . | . . . . Distress Signals . | . . . . Times Spotted 21 | . 5 10 6 Peak Tracking Total 6 | . 2 6 3 Tactical Retreats 2 | . 2 . . Traps | -11 -10 -10 -7 ------- Run | Yrd Mat Sub Scr Traps Triggered . | . . . . Indirectly . | . . . . Trap Hack Attempts . | . . . . Triggered . | . . . . Disarmed . | . . . . Reprogrammed . | . . . . Reused . | . . . . Traps Extracted . | . . . . Installed . | . . . . Triggered . | . . . . Machines | -11 -10 -10 -7 ---------- Run | Yrd Mat Sub Scr Machines Disabled . | . . . . Max in Single Turn . | . . . . Machines Repaired . | . . . . Machines Dismantled . | . . . . Machines Sabotaged . | . . . . Overloaded Fab Kills . | . . . . Hacking | -11 -10 -10 -7 --------- Run | Yrd Mat Sub Scr Machines Accessed 6 | . . . 6 Terminals . | . . . . Fabricators . | . . . . Repair Stations . | . . . . Recycling Units . | . . . . Scanalyzers . | . . . . Garrison Access . | . . . . Total Hacks 32 | . . . 32 Successful 32 | . . . 32 Failed . | . . . . Catastrophic . | . . . . Database Lockouts . | . . . . Manual 2 | . . . 2 Terminals . | . . . . Fabricators . | . . . . Repair Stations . | . . . . Recycling Units . | . . . . Scanalyzers . | . . . . Garrison Access . | . . . . Terminal Hacks 32 | . . . 32 Record 30 | . . . 30 Open Door 1 | . . . 1 Proto ID Catalog 1 | . . . 1 Fabricator Hacks . | . . . . Repair Station Hacks . | . . . . Recycling Unit Hacks . | . . . . Scanalyzer . | . . . . Garrison Access Hacks . | . . . . Unauthorized Hacks . | . . . . Terminals . | . . . . Fabricators . | . . . . Repair Stations . | . . . . Recycling Units . | . . . . Scanalyzers . | . . . . Garrison Access . | . . . . Data Cores Recovered . | . . . . Used . | . . . . Hacking Detections . | . . . . Full Trace Events . | . . . . Feedback Events . | . . . . Feedback Blocked . | . . . . Robot Schematics Acquired . | . . . . Robots Built . | . . . . Authchips . | . . . . Time . | . . . . Total Robot Build Rating . | . . . . Part Schematics Acquired . | . . . . Parts Built . | . . . . Authchips . | . . . . Time . | . . . . Total Part Build Rating . | . . . . Parts Repaired . | . . . . Time . | . . . . Parts Recycled . | . . . . Recycled Matter . | . . . . Retrieved Matter . | . . . . Retrieved Components . | . . . . Parts Scanalyzed . | . . . . Part Schematics Acquired . | . . . . Parts Damaged . | . . . . Bothacking | -11 -10 -10 -7 ------------ Run | Yrd Mat Sub Scr Used RIF Installer . | . . . . Robots Hacked . | . . . . Non-combat . | . . . . Combat . | . . . . Robot Hacks Applied . | . . . . Relay Couplers Released . | . . . . Fabnet Peak Effective % . | . . . . Robots Rewired . | . . . . Allies Hacked . | . . . . Hacks Repelled . | . . . . Allies | -11 -10 -10 -7 -------- Run | Yrd Mat Sub Scr Total Allies . | . . . . Largest Group . | . . . . Highest-Rated Group . | . . . . Highest-Rated Ally . | . . . . Total Orders . | . . . . Ally Attacks . | . . . . Total Damage . | . . . . Kills . | . . . . Allies Corrupted . | . . . . Allies Melted 1 | . . . 1 Intel | -11 -10 -10 -7 ------- Run | Yrd Mat Sub Scr Active Infowar (turns) 1555 | 49 154 534 818 Terrain 1555 | 49 154 534 818 Robot Analysis Total . | . . . . Derelict Logs Recovered 5 | . . 1 4 Drone Launches . | . . . . Drone Recoveries . | . . . . Exploration | -11 -10 -10 -7 ------------- Run | Yrd Mat Sub Scr Turns Passed 1659 | 119 154 534 852 Spaces Moved 1323 | 70 82 426 745 Core 11 | 10 . . 1 Treads . | . . . . Legs 232 | 60 82 90 . Wheels 1080 | . . 336 744 Hover . | . . . . Flight . | . . . . Fastest Speed 50 | 50 120 110 110 Average Speed 111 | 110 120 112 110 Slowest Speed 150 | 120 120 120 150 Overloaded Moves . | . . . . Propulsion Burnouts . | . . . . Robots Hopped . | . . . . Potential Cave-ins . | . . . . Cave-ins Triggered . | . . . . Exploration Rate (%) 28 | 5 11 30 67 Regions Visited 3 Branch Regions 2 Pre-discovered Areas . | . . . . Known Exits Taken . | . . . . Unknown Exits Taken 3 | 1 1 1 . Scrap Searched 2 | . . . 2 Spaces Dug . | . . . . Terrain Destroyed . | . . . . Melee . | . . . . Projectile . | . . . . AOE . | . . . . Terrain Rammed . | . . . . Walls Destroyed . | . . . . Machines Disabled . | . . . . Actions | -11 -10 -10 -7 --------- Run | Yrd Mat Sub Scr Total 1440 | 98 109 465 768 Wait 16 | . 7 5 4 Move 1320 | 69 81 425 745 Hop . | . . . . Pick Up 32 | 15 3 10 4 Fast Attach . | . . . . Attach 11 | 7 . 3 1 Detach . | . . . . Swap 2 | . . 1 1 Drop 18 | . 3 10 5 Fire 33 | 7 15 11 . Melee 8 | . . . 8 Ram . | . . . . Kick . | . . . . Crush . | . . . . Escape Stasis . | . . . . Rewire . | . . . . Trap . | . . . . Miscellaneous . | . . . . Route ------- -11/Scrapyard -10/Materials -10/Subcaves (discovered 2 exits: [*Mat] / *Scr) -7/Scraptown (discovered 1 exit: [*Fac]) History --------- Turn | Location | Event 4 | -11/Scrapyard | Discovered new exit (range 16) 120 | -11/Scrapyard | Entered Materials 257 | -10/Materials | Discovered new exit (range 9) 274 | -10/Materials | Entered Subcaves 275 | -10/Subcaves | Approached by a straggling Scientist 301 | -10/Subcaves | Build established: Mutant 308 | -10/Subcaves | Learned Materials emergency access door positions 367 | -10/Subcaves | Ambushed by swarm of Subdwellers 591 | -10/Subcaves | Discovered new exit (range 13) 805 | -10/Subcaves | Scientist uncovered a shortcut to Scraptown 808 | -10/Subcaves | Entered Scraptown 1052 | -7/Scraptown | Heard Great Nut preacher, LISTEN AND RECITE! 1087 | -7/Scraptown | Discovered new exit (range 11) 1117 | -7/Scraptown | Scanned Subdweller tech in exchange for log data 1119 | -7/Scraptown | Learned location of 1 exit from Lower Caves 1121 | -7/Scraptown | Learned Factory non-interactive machine intel 1122 | -7/Scraptown | Learned Research terminal intel 1179 | -7/Scraptown | Visited Symbiants 1209 | -7/Scraptown | Visited Fellowship of the Rings 1244 | -7/Scraptown | Visited UFD Registry 1244 | -7/Scraptown | Registered with UFD as "Phaseback" 1300 | -7/Scraptown | Visited Science Guys 1346 | -7/Scraptown | Visited Junk Repository 1397 | -7/Scraptown | Visited Derelict Rescue Squad 1405 | -7/Scraptown | Found DRS Beacon 1429 | -7/Scraptown | Visited Sword Containment 1490 | -7/Scraptown | Met Optimus 1490 | -7/Scraptown | Accepted into 0bPrime 1591 | -7/Scraptown | Visited Botcube Research 1600 | -7/Scraptown | Found Botcube 1603 | -7/Scraptown | Civil war broke out across Scraptown 1637 | -7/Scraptown | Core integrity fell below 50% 1655 | -7/Scraptown | Core integrity fell below 20% 1660 | -7/Scraptown | Destroyed by IW-BRA(j) with Overtuned Pulse Rifle Last Messages --------------- 2N-SM5(E) destroyed. Imp. Terrain Scanner destroyed. Chain reaction triggered in Ion Engine. Machine disabled. OO-UDD(g) switches sides. OO-UDD(g) destroyed. 9E-YD2(j) cannibalizes Salvaging Laser to repair Ovr. Pulse Rifle. Critical hit (Burn: +50). Mak. Salvage Targeting Computer melted. 9E-YD2(j) destroyed. Companion Sword: "Wicked slice, buddy! I'd like to think I contributed a lot there." Acquired 15 matter. Sub. Monowheel destroyed. Critical hit (Burn: +50). Ion Engine destroyed. Destroyed Imp. Hover Unit. Supplies damaged. FD-QCG(p) destroyed. Map ----- +----------------------------------------------------+ | """""""?""""""""""""""" "########????????????? | | """""""""""""""" """"" ?????????? | | "## #### #???????????? | | "#?? ???????????????? | | "#??? #?????????????? | | ![= ##????#?????????????? | | =%* #??? ??????????????? | | """"""" """"""""""" """""" ##?? ???????????????? | | ####### #????###### ###### #???????????????????? | | ??????? ?????#" ## #???????????????????? | | ?????????????#" """## #???????????????????? | | ?????????????# " ""## #????#??????????????? | | ?????????????#"" [ """## #???????????????????? | | ?????????????#"" """"## #???????????????????? | | ??????????#???###"######## ############????????? | | ??????????????????????"??# #????????? | | ????????????????? ? ?????# ##????????? | | ???????????????? ???????# #????????? | | ?????????????????????????# #????????? | | ???????????#?????????????# #????????? | | ?????????????????#???????# ############????????? | | ?????????????????????##### #####???????????????? | | ?????????????????????# |"# """"#???????????????? | | ?????????????""##""|##" *#! "" "#???????????????? | | ?????????? % % %%! "#???????????????? | | ?????????? ==!!@=!! "#???????????????? | | ?????????? !%![%[% ""#???????????????? | | ???????????#" "##!! ## "=##j;;####???????????????? | | ????????????????#""??#"""?";###??????????????????? | | ?????????????????????####?###????????????????????? | | ?????????????????????????????????????????????????? | | ?????????????????????????????????????????????????? | | ?????????????????????????????????????????????????? | | ?????????????????????????????????????????????????? | | ?????????????????????????????????????????????????? | | ?????????????????????????????????????????????????? | | ?????????????????????????????????????????????????? | | ?????????????????????????????????????????????????? | | ?????????????????????????????????????????????????? | | ?????????????????????????????????????????????????? | | ?????????????????????????????????????????????????? | | ?????????????????????????????????????????????????? | | ?????????????????????????????????????????????????? | | ?????????????????????????????????????????????????? | | | | | | | | | | | | | +----------------------------------------------------+ Best States ------------- Heat Dissipation 25 Energy Generation 10 Energy Capacity 250 Matter Stores 300 Matter Capacity 300 Sight Range 16 Terrain Scan Range 16 Terrain Scan Density 10 Evasion (%) 55 Item Schematics ----------------- None Robot Schematics ------------------ None Fabricated ------------ Nothing Repaired ---------- Nothing Alien Tech Used ----------------- None Achievements -------------- Backstab Challenges ------------ None Game ------ Seed LinkedIonicPit Manual? 0 Play Time 00:54:57 Cumulative 3.7 hours Start 2025.06.28 @ 19:27:44 End 2025.06.28 @ 20:25:10 Sessions 1 Manual Loads 0 Difficulty Rogue Special Mode None Game No. 6 Rogue 6 Adventurer 0 Explorer 0 Win Type - Total 0 Types 0/0/0/0/0/0/0/0/0/0 Lore% 10 Gallery% 4 Achievement% 6 Wizard Run 0 Options --------- Layout 1 ASCII 0 Keyboard 0 Movement Mouse Keybinds 0 Fullscreen 1 Font 32/SmallcapsGlow Map View 50x35 Zoom Use 0% Tactical HUD 0 Map Filters NONE Filters NONE Steam 1 RUN: 81ba3024-b653-4782-885e-8665d8f9e960